[Event "*** Titled Tuesday Blitz"]
[Site "Chess.com"]
[Date "2019.02.05"]
[Round "5"]
[White "Zhuu96"]
[Black "Federtiu"]
[Result "1-0"]
[WhiteElo "2864"]
[BlackElo "2643"]
[TimeControl "180+2"]
[EndTime "14:05:40 PST"]
[Termination "Zhuu96 won by resignation"]

1. e4 {[%clk 0:03:01.5]} 1... g6 {[%clk 0:03:00.5]} 2. d4 {[%clk 0:03:02]} 2...
Bg7 {[%clk 0:03:00.5]} 3. Nc3 {[%clk 0:03:03]} 3... d6 {[%clk 0:03:00.5]} 4. f4
{[%clk 0:03:03.6]} 4... a6 {[%clk 0:03:01.5]} 5. Nf3 {[%clk 0:03:02.6]} 5... b5
{[%clk 0:03:02.6]} 6. Bd3 {[%clk 0:03:03.8]} 6... Nd7 {[%clk 0:03:03.4]} 7. e5
{[%clk 0:03:04]} 7... c5 {[%clk 0:03:03.7]} 8. Be4 {[%clk 0:02:52.9]} 8... Rb8
{[%clk 0:03:01.1]} 9. d5 {[%clk 0:02:43.8]} 9... dxe5 {[%clk 0:02:57]} 10. fxe5
{[%clk 0:02:42.9]} 10... Nxe5 {[%clk 0:02:56.2]} 11. Bf4 {[%clk 0:02:43.7]}
11... Bg4 {[%clk 0:02:51.8]} 12. Qe2 {[%clk 0:02:38.4]} 12... Nc4 {[%clk
0:02:49.7]} 13. Bxb8 {[%clk 0:02:30.8]} 13... Qxb8 {[%clk 0:02:51.6]} 14. O-O-O
{[%clk 0:02:27.5]} 14... Nxb2 {[%clk 0:02:45.9]} 15. Kxb2 {[%clk 0:02:28.2]}
15... b4 {[%clk 0:02:47.4]} 16. Ka1 {[%clk 0:02:17.8]} 16... Bxc3+ {[%clk
0:02:40.9]} 17. Kb1 {[%clk 0:02:18.4]} 17... Nf6 {[%clk 0:02:31.3]} 18. d6
{[%clk 0:02:15.2]} 18... e5 {[%clk 0:01:29.5]} 19. Bc6+ {[%clk 0:02:07.6]} 19...
Kf8 {[%clk 0:01:29.2]} 20. h3 {[%clk 0:02:05.5]} 20... Be6 {[%clk 0:01:23.2]}
21. Nxe5 {[%clk 0:01:59.8]} 21... Qb6 {[%clk 0:01:19.6]} 22. Rhf1 {[%clk
0:01:54.6]} 22... Kg7 {[%clk 0:00:34.8]} 23. Rxf6 {[%clk 0:01:51.9]} 23... Kxf6
{[%clk 0:00:36.7]} 24. Nd7+ {[%clk 0:01:51.6]} 24... Bxd7 {[%clk 0:00:35.4]} 25.
Bxd7 {[%clk 0:01:50.3]} 25... Kg7 {[%clk 0:00:35.4]} 26. Be8 {[%clk 0:01:46.2]}
26... Qa5 {[%clk 0:00:16.6]} 27. Rf1 {[%clk 0:00:38.8]} 27... Qa3 {[%clk
0:00:13.8]} 28. Rxf7+ {[%clk 0:00:37.6]} 28... Kg8 {[%clk 0:00:11.6]} 29. Rf8+
{[%clk 0:00:37.9]} 29... Kxf8 {[%clk 0:00:09.4]} 30. Qe7+ {[%clk 0:00:37.5]} 1-0

[Event "*** Titled Tuesday Blitz"]
[Site "Chess.com"]
[Date "2019.02.05"]
[Round "5"]
[White "Th3ChessViking"]
[Black "TomasKapitanchuk"]
[Result "1-0"]
[WhiteElo "2468"]
[BlackElo "2416"]
[TimeControl "180+2"]
[EndTime "14:05:52 PST"]
[Termination "Th3ChessViking won by checkmate"]

1. c4 {[%clk 0:03:01.9]} 1... Nf6 {[%clk 0:03:00.6]} 2. g3 {[%clk 0:03:02.2]}
2... c5 {[%clk 0:03:01.3]} 3. Bg2 {[%clk 0:03:02]} 3... g6 {[%clk 0:03:02.1]} 4.
Nc3 {[%clk 0:03:03.9]} 4... Bg7 {[%clk 0:03:03.2]} 5. d3 {[%clk 0:03:05.4]} 5...
O-O {[%clk 0:03:04]} 6. Bf4 {[%clk 0:03:06.9]} 6... Nc6 {[%clk 0:03:04]} 7. Qd2
{[%clk 0:03:07.7]} 7... Re8 {[%clk 0:02:59.4]} 8. Bh6 {[%clk 0:03:08.1]} 8...
Bh8 {[%clk 0:03:00.5]} 9. h4 {[%clk 0:03:09.7]} 9... e6 {[%clk 0:02:59.4]} 10.
O-O-O {[%clk 0:03:02.6]} 10... d5 {[%clk 0:02:58.5]} 11. Bg5 {[%clk 0:03:02.2]}
11... dxc4 {[%clk 0:02:52.8]} 12. Bxc6 {[%clk 0:02:57.6]} 12... bxc6 {[%clk
0:02:45.8]} 13. dxc4 {[%clk 0:02:58.7]} 13... Qa5 {[%clk 0:02:28.4]} 14. Bxf6
{[%clk 0:02:34.6]} 14... Bxf6 {[%clk 0:02:26.4]} 15. Ne4 {[%clk 0:02:36.5]}
15... Qxd2+ {[%clk 0:02:10.7]} 16. Rxd2 {[%clk 0:02:38.4]} 16... Be7 {[%clk
0:02:07.4]} 17. f4 {[%clk 0:02:35.2]} 17... a5 {[%clk 0:01:55.5]} 18. Nf3 {[%clk
0:02:35.1]} 18... f6 {[%clk 0:01:51.6]} 19. h5 {[%clk 0:02:21.3]} 19... Ba6
{[%clk 0:01:48.8]} 20. hxg6 {[%clk 0:02:17.2]} 20... hxg6 {[%clk 0:01:49]} 21.
b3 {[%clk 0:02:12.3]} 21... a4 {[%clk 0:01:48.5]} 22. Kc2 {[%clk 0:02:07.2]}
22... Kg7 {[%clk 0:01:42.7]} 23. e3 {[%clk 0:02:06.9]} 23... axb3+ {[%clk
0:01:38.3]} 24. axb3 {[%clk 0:02:06.9]} 24... Bb7 {[%clk 0:01:38.3]} 25. Kb2
{[%clk 0:02:02.2]} 25... Rab8 {[%clk 0:01:23.7]} 26. Rd7 {[%clk 0:01:32.6]}
26... Bc8 {[%clk 0:01:05]} 27. Rc7 {[%clk 0:01:16.4]} 27... Kg8 {[%clk
0:00:58.2]} 28. g4 {[%clk 0:00:51.8]} 28... Ba6 {[%clk 0:00:47.9]} 29. g5 {[%clk
0:00:28.6]} 29... Bxc4 {[%clk 0:00:35.1]} 30. Nxf6+ {[%clk 0:00:27.4]} 30...
Bxf6+ {[%clk 0:00:35.3]} 31. gxf6 {[%clk 0:00:29.3]} 31... Rxb3+ {[%clk
0:00:21.5]} 32. Kc2 {[%clk 0:00:26.1]} 32... Rf8 {[%clk 0:00:17.7]} 33. Rg7#
{[%clk 0:00:25.8]} 1-0

[Event "*** Titled Tuesday Blitz"]
[Site "Chess.com"]
[Date "2019.02.05"]
[Round "5"]
[White "DonPreuss"]
[Black "MateusViageiro"]
[Result "0-1"]
[WhiteElo "2180"]
[BlackElo "2191"]
[TimeControl "180+2"]
[EndTime "14:06:01 PST"]
[Termination "MateusViageiro won on time"]

1. d4 {[%clk 0:03:01.9]} 1... Nf6 {[%clk 0:03:00.1]} 2. Nc3 {[%clk 0:03:02.4]}
2... d5 {[%clk 0:03:00.1]} 3. e4 {[%clk 0:03:03.9]} 3... dxe4 {[%clk 0:03:00.3]}
4. f3 {[%clk 0:03:05.2]} 4... exf3 {[%clk 0:03:01.1]} 5. Nxf3 {[%clk 0:03:07.1]}
5... g6 {[%clk 0:03:01.6]} 6. Bd3 {[%clk 0:03:07.2]} 6... Bg7 {[%clk 0:03:00.7]}
7. O-O {[%clk 0:03:08.6]} 7... O-O {[%clk 0:03:02.6]} 8. Qe1 {[%clk 0:03:09.1]}
8... c6 {[%clk 0:03:02.5]} 9. Qh4 {[%clk 0:03:09.6]} 9... Bg4 {[%clk 0:02:57.5]}
10. Bh6 {[%clk 0:03:01.1]} 10... Bxf3 {[%clk 0:02:44]} 11. Rxf3 {[%clk
0:03:00.7]} 11... Bxh6 {[%clk 0:02:44.9]} 12. Qxh6 {[%clk 0:03:00]} 12... Qxd4+
{[%clk 0:02:43.5]} 13. Kh1 {[%clk 0:03:00.7]} 13... Nbd7 {[%clk 0:02:44.4]} 14.
Rh3 {[%clk 0:02:56.2]} 14... Ne5 {[%clk 0:02:41.8]} 15. Ne4 {[%clk 0:02:15]}
15... Neg4 {[%clk 0:02:37.1]} 16. Nxf6+ {[%clk 0:02:15.7]} 16... Nxf6 {[%clk
0:02:37.6]} 17. Rf1 {[%clk 0:02:16.4]} 17... Rfd8 {[%clk 0:02:28.1]} 18. Rf4
{[%clk 0:01:04.5]} 18... Qe5 {[%clk 0:02:23]} 19. g4 {[%clk 0:00:50.2]} 19...
Qd5+ {[%clk 0:01:37.6]} 20. Kg1 {[%clk 0:00:46]} 20... Qc5+ {[%clk 0:01:34.7]}
21. Kf1 {[%clk 0:00:35]} 21... Qe5 {[%clk 0:01:04.3]} 22. Rff3 {[%clk
0:00:22.1]} 22... Rd5 {[%clk 0:00:47.2]} 23. c4 {[%clk 0:00:08.7]} 23... Ra5
{[%clk 0:00:23.5]} 24. b4 {[%clk 0:00:07.3]} 24... Rxa2 {[%clk 0:00:21.5]} 25.
Kg1 {[%clk 0:00:03]} 25... Qd4+ {[%clk 0:00:15.4]} 26. Kh1 {[%clk 0:00:03.6]}
26... Qxg4 {[%clk 0:00:15.6]} 0-1

[Event "*** Titled Tuesday Blitz"]
[Site "Chess.com"]
[Date "2019.02.05"]
[Round "5"]
[White "Fy_Rakotomaharo"]
[Black "AlexTruskavetsky"]
[Result "1-0"]
[WhiteElo "2480"]
[BlackElo "2254"]
[TimeControl "180+2"]
[EndTime "14:06:03 PST"]
[Termination "Fy_Rakotomaharo won on time"]

1. d4 {[%clk 0:03:01.9]} 1... Nf6 {[%clk 0:03:00.2]} 2. c4 {[%clk 0:03:02.9]}
2... g6 {[%clk 0:03:01.1]} 3. Nc3 {[%clk 0:03:03.7]} 3... d5 {[%clk 0:03:02.1]}
4. Nf3 {[%clk 0:03:02.3]} 4... Bg7 {[%clk 0:03:02.1]} 5. cxd5 {[%clk 0:03:03.8]}
5... Nxd5 {[%clk 0:03:02.6]} 6. Bg5 {[%clk 0:03:05.4]} 6... Nxc3 {[%clk
0:02:57.5]} 7. bxc3 {[%clk 0:03:06.1]} 7... O-O {[%clk 0:02:57.6]} 8. e3 {[%clk
0:03:06.5]} 8... c5 {[%clk 0:02:53.2]} 9. Bd3 {[%clk 0:03:05.5]} 9... Nc6 {[%clk
0:02:50.6]} 10. O-O {[%clk 0:03:04.1]} 10... Be6 {[%clk 0:02:23.7]} 11. Qe2
{[%clk 0:02:41.2]} 11... Qa5 {[%clk 0:02:20]} 12. Rab1 {[%clk 0:02:36.2]} 12...
b6 {[%clk 0:02:04.2]} 13. Be4 {[%clk 0:02:28.2]} 13... Bd7 {[%clk 0:01:50.6]}
14. d5 {[%clk 0:02:27.1]} 14... Ne5 {[%clk 0:01:47.2]} 15. Bxe7 {[%clk
0:02:23.6]} 15... Rfe8 {[%clk 0:01:35.4]} 16. d6 {[%clk 0:02:23.6]} 16... Qxc3
{[%clk 0:01:17.5]} 17. Bxa8 {[%clk 0:02:20.1]} 17... Rxa8 {[%clk 0:01:17.6]} 18.
Nxe5 {[%clk 0:02:04.3]} 18... Bxe5 {[%clk 0:01:13.6]} 19. Qf3 {[%clk 0:02:05.4]}
19... Rb8 {[%clk 0:00:51]} 20. Rfc1 {[%clk 0:02:02.7]} 20... Qd2 {[%clk
0:00:30.3]} 21. Rd1 {[%clk 0:01:54.5]} 21... Qxa2 {[%clk 0:00:29.6]} 22. Bf6
{[%clk 0:01:55.6]} 22... Qe6 {[%clk 0:00:28.2]} 23. Bxe5 {[%clk 0:01:50.4]}
23... Qxe5 {[%clk 0:00:29.4]} 24. h3 {[%clk 0:01:51.4]} 24... Qe6 {[%clk
0:00:20.8]} 25. e4 {[%clk 0:01:43.5]} 25... Kf8 {[%clk 0:00:20.6]} 26. Qf4
{[%clk 0:01:41.4]} 26... Kg7 {[%clk 0:00:21]} 27. e5 {[%clk 0:01:40.1]} 27... a5
{[%clk 0:00:21.3]} 28. Rdc1 {[%clk 0:01:38]} 28... a4 {[%clk 0:00:18.5]} 29.
Rxc5 {[%clk 0:01:38.7]} 29... a3 {[%clk 0:00:17]} 30. Rc2 {[%clk 0:01:30.6]}
30... b5 {[%clk 0:00:15.1]} 31. Qb4 {[%clk 0:01:20.7]} 31... a2 {[%clk
0:00:13.3]} 32. Ra1 {[%clk 0:01:19.5]} 32... Ra8 {[%clk 0:00:13.7]} 33. Qb2
{[%clk 0:01:15.5]} 33... b4 {[%clk 0:00:14.4]} 34. Rc7 {[%clk 0:01:10.3]} 34...
b3 {[%clk 0:00:11.6]} 35. Rxd7 {[%clk 0:01:10.4]} 35... Rc8 {[%clk 0:00:04.4]}
36. Rc7 {[%clk 0:01:03]} 1-0

[Event "*** Titled Tuesday Blitz"]
[Site "Chess.com"]
[Date "2019.02.05"]
[Round "5"]
[White "Ekko_li"]
[Black "INLOVEWITHF"]
[Result "0-1"]
[WhiteElo "2477"]
[BlackElo "2299"]
[TimeControl "180+2"]
[EndTime "14:06:08 PST"]
[Termination "INLOVEWITHF won by resignation"]

1. e4 {[%clk 0:03:01.9]} 1... e5 {[%clk 0:02:59.9]} 2. Nf3 {[%clk 0:03:02.4]}
2... Nc6 {[%clk 0:03:00.4]} 3. Nc3 {[%clk 0:03:04.1]} 3... Nf6 {[%clk
0:03:00.4]} 4. d4 {[%clk 0:03:05.2]} 4... exd4 {[%clk 0:03:01.1]} 5. Nxd4 {[%clk
0:03:06.4]} 5... Bb4 {[%clk 0:03:02]} 6. Nxc6 {[%clk 0:03:07.6]} 6... bxc6
{[%clk 0:03:03.5]} 7. Bd3 {[%clk 0:03:08.9]} 7... d5 {[%clk 0:03:04.5]} 8. exd5
{[%clk 0:03:09.4]} 8... O-O {[%clk 0:03:05.5]} 9. O-O {[%clk 0:03:10.2]} 9...
Bg4 {[%clk 0:03:06.7]} 10. Be2 {[%clk 0:03:06.7]} 10... Bxe2 {[%clk 0:03:07.2]}
11. Qxe2 {[%clk 0:03:06.8]} 11... Bxc3 {[%clk 0:02:58.3]} 12. bxc3 {[%clk
0:03:06.9]} 12... cxd5 {[%clk 0:02:58.3]} 13. Bf4 {[%clk 0:03:01.5]} 13... Qd7
{[%clk 0:02:55.5]} 14. Qd3 {[%clk 0:03:01.2]} 14... Rfe8 {[%clk 0:02:52.6]} 15.
Rfe1 {[%clk 0:02:57.1]} 15... h6 {[%clk 0:02:52.6]} 16. h3 {[%clk 0:02:56.7]}
16... Rab8 {[%clk 0:02:40.3]} 17. Be5 {[%clk 0:02:49.7]} 17... Qb5 {[%clk
0:02:23.3]} 18. Bxf6 {[%clk 0:02:37]} 18... Qxd3 {[%clk 0:02:14.8]} 19. cxd3
{[%clk 0:02:37.4]} 19... gxf6 {[%clk 0:02:15.6]} 20. Reb1 {[%clk 0:02:25.1]}
20... Rxb1+ {[%clk 0:02:03.7]} 21. Rxb1 {[%clk 0:02:25.6]} 21... Re2 {[%clk
0:02:05.6]} 22. Rb7 {[%clk 0:02:25.9]} 22... Rxa2 {[%clk 0:02:03.6]} 23. Rxc7
{[%clk 0:02:26.8]} 23... Rc2 {[%clk 0:02:05]} 24. d4 {[%clk 0:02:26.7]} 24... a5
{[%clk 0:02:00.5]} 25. Ra7 {[%clk 0:02:26.1]} 25... Ra2 {[%clk 0:01:58.6]} 26.
Kh2 {[%clk 0:02:26.7]} 26... a4 {[%clk 0:01:54.9]} 27. Kg3 {[%clk 0:02:27.4]}
27... Rc2 {[%clk 0:01:52.6]} 28. Rxa4 {[%clk 0:02:26.8]} 28... Rxc3+ {[%clk
0:01:53.1]} 29. Kf4 {[%clk 0:02:27.5]} 29... Rc2 {[%clk 0:01:49]} 30. Ke3 {[%clk
0:02:28]} 30... Rc8 {[%clk 0:01:04.1]} 31. Ra5 {[%clk 0:02:28.1]} 31... Rd8
{[%clk 0:01:05]} 32. Kf4 {[%clk 0:02:28.6]} 32... Kg7 {[%clk 0:01:04]} 33. g4
{[%clk 0:02:23.1]} 33... Kg6 {[%clk 0:01:04.2]} 34. h4 {[%clk 0:02:24.3]} 34...
h5 {[%clk 0:01:00.5]} 35. f3 {[%clk 0:02:24.7]} 35... Rd6 {[%clk 0:00:57.4]} 36.
Rc5 {[%clk 0:02:24.8]} 36... Rd8 {[%clk 0:00:52.2]} 37. Rc6 {[%clk 0:02:25.5]}
37... hxg4 {[%clk 0:00:46]} 38. fxg4 {[%clk 0:02:26.3]} 38... Re8 {[%clk
0:00:47.5]} 39. h5+ {[%clk 0:02:24.3]} 39... Kg7 {[%clk 0:00:48.2]} 40. Kf5
{[%clk 0:02:19.5]} 40... Re1 {[%clk 0:00:46]} 41. h6+ {[%clk 0:02:15.4]} 41...
Kxh6 {[%clk 0:00:45.6]} 42. Rxf6+ {[%clk 0:02:16.9]} 42... Kg7 {[%clk
0:00:45.8]} 43. Rd6 {[%clk 0:02:18.1]} 43... Rf1+ {[%clk 0:00:45.3]} 44. Kg5
{[%clk 0:02:18.6]} 44... f6+ {[%clk 0:00:41.7]} 45. Kh4 {[%clk 0:02:19.9]} 45...
f5 {[%clk 0:00:32]} 46. g5 {[%clk 0:02:03.6]} 46... Rf4+ {[%clk 0:00:30.8]} 47.
Kh5 {[%clk 0:02:04.2]} 47... Rxd4 {[%clk 0:00:22]} 48. Rd7+ {[%clk 0:02:05.5]}
48... Kf8 {[%clk 0:00:22.4]} 49. Kg6 {[%clk 0:02:07]} 49... f4 {[%clk
0:00:20.4]} 50. Kf6 {[%clk 0:02:00.9]} 50... Ke8 {[%clk 0:00:20.1]} 51. Re7+
{[%clk 0:02:01]} 51... Kd8 {[%clk 0:00:10.7]} 52. g6 {[%clk 0:01:58.4]} 52... f3
{[%clk 0:00:09.9]} 53. Kg5 {[%clk 0:01:48.1]} 53... Kxe7 {[%clk 0:00:08.5]} 0-1

[Event "*** Titled Tuesday Blitz"]
[Site "Chess.com"]
[Date "2019.02.05"]
[Round "5"]
[White "mouseWLZ"]
[Black "Polish_fighter3000"]
[Result "0-1"]
[WhiteElo "2469"]
[BlackElo "3007"]
[TimeControl "180+2"]
[EndTime "14:06:09 PST"]
[Termination "Polish_fighter3000 won by resignation"]

1. e4 {[%clk 0:03:01.9]} 1... e5 {[%clk 0:02:59.9]} 2. Nf3 {[%clk 0:03:02.4]}
2... Nc6 {[%clk 0:03:01.4]} 3. Bc4 {[%clk 0:03:03.6]} 3... Bc5 {[%clk
0:03:02.5]} 4. c3 {[%clk 0:03:04.3]} 4... Nf6 {[%clk 0:03:03.7]} 5. d3 {[%clk
0:03:05.7]} 5... d6 {[%clk 0:03:03.4]} 6. h3 {[%clk 0:03:06.6]} 6... h6 {[%clk
0:03:03.5]} 7. Nbd2 {[%clk 0:03:07.8]} 7... O-O {[%clk 0:02:58.3]} 8. Nf1 {[%clk
0:03:07.6]} 8... d5 {[%clk 0:02:44.5]} 9. exd5 {[%clk 0:03:06.2]} 9... Nxd5
{[%clk 0:02:46.4]} 10. Ng3 {[%clk 0:03:03.4]} 10... Be6 {[%clk 0:02:47.3]} 11.
O-O {[%clk 0:03:02.3]} 11... a5 {[%clk 0:02:42.1]} 12. Re1 {[%clk 0:03:00.9]}
12... Re8 {[%clk 0:02:34.4]} 13. a4 {[%clk 0:02:40.6]} 13... Bb6 {[%clk
0:02:27.4]} 14. Bb5 {[%clk 0:02:36.5]} 14... f6 {[%clk 0:02:26.4]} 15. Nh4
{[%clk 0:02:16.8]} 15... Qd7 {[%clk 0:02:24.2]} 16. Qf3 {[%clk 0:01:50.5]} 16...
g5 {[%clk 0:01:45.4]} 17. Nhf5 {[%clk 0:01:37.8]} 17... Nf4 {[%clk 0:01:44.5]}
18. Bxf4 {[%clk 0:01:30.9]} 18... gxf4 {[%clk 0:01:17.2]} 19. Ne4 {[%clk
0:01:07]} 19... Rf8 {[%clk 0:01:17.6]} 20. Nxh6+ {[%clk 0:00:53.3]} 20... Kg7
{[%clk 0:01:18.5]} 21. Ng4 {[%clk 0:00:43.2]} 21... f5 {[%clk 0:00:42.9]} 22.
Nxe5 {[%clk 0:00:42.2]} 22... Nxe5 {[%clk 0:00:44.2]} 23. Qxf4 {[%clk
0:00:41.3]} 23... Ng6 {[%clk 0:00:45.6]} 24. Qg5 {[%clk 0:00:21.3]} 24... c6
{[%clk 0:00:34.8]} 25. Ng3 {[%clk 0:00:22.5]} 25... cxb5 {[%clk 0:00:27.6]} 26.
Nh5+ {[%clk 0:00:23.8]} 26... Kh7 {[%clk 0:00:28.9]} 27. Nf6+ {[%clk 0:00:23.2]}
27... Rxf6 {[%clk 0:00:30.2]} 28. Qxf6 {[%clk 0:00:25.1]} 28... Re8 {[%clk
0:00:31.3]} 29. Re2 {[%clk 0:00:22.3]} 29... Bd8 {[%clk 0:00:31.5]} 30. Qd4
{[%clk 0:00:19.4]} 30... Qxd4 {[%clk 0:00:32.9]} 31. cxd4 {[%clk 0:00:21.3]}
31... Nf4 {[%clk 0:00:34.4]} 32. Re3 {[%clk 0:00:19.3]} 32... Rg8 {[%clk
0:00:34.4]} 33. axb5 {[%clk 0:00:12.2]} 33... Rxg2+ {[%clk 0:00:33.9]} 34. Kf1
{[%clk 0:00:13.7]} 34... Bd5 {[%clk 0:00:31.2]} 35. Rg3 {[%clk 0:00:12.8]} 35...
Rh2 {[%clk 0:00:30.2]} 36. Rg1 {[%clk 0:00:13.1]} 36... Bh4 {[%clk 0:00:31.2]}
0-1

[Event "*** Titled Tuesday Blitz"]
[Site "Chess.com"]
[Date "2019.02.05"]
[Round "5"]
[White "GataKamsky1974"]
[Black "GMsKoRPioN"]
[Result "1-0"]
[WhiteElo "2738"]
[BlackElo "2560"]
[TimeControl "180+2"]
[EndTime "14:06:09 PST"]
[Termination "GataKamsky1974 won by checkmate"]

1. d4 {[%clk 0:03:01.9]} 1... g6 {[%clk 0:02:56.4]} 2. Nf3 {[%clk 0:03:02.8]}
2... Bg7 {[%clk 0:02:56.5]} 3. e4 {[%clk 0:03:04]} 3... d6 {[%clk 0:02:57.4]} 4.
c3 {[%clk 0:03:04.7]} 4... Nf6 {[%clk 0:02:58.4]} 5. Bd3 {[%clk 0:03:05.8]} 5...
O-O {[%clk 0:02:59.4]} 6. O-O {[%clk 0:03:07.4]} 6... Bg4 {[%clk 0:02:59.3]} 7.
Nbd2 {[%clk 0:03:07.2]} 7... Nc6 {[%clk 0:02:56.5]} 8. h3 {[%clk 0:03:08.3]}
8... Bxf3 {[%clk 0:02:57.7]} 9. Nxf3 {[%clk 0:03:09]} 9... e5 {[%clk 0:02:59.1]}
10. Re1 {[%clk 0:03:07.1]} 10... Nh5 {[%clk 0:02:58.2]} 11. Bb5 {[%clk
0:03:05.8]} 11... Ne7 {[%clk 0:02:37.5]} 12. dxe5 {[%clk 0:03:05.3]} 12... dxe5
{[%clk 0:02:39.4]} 13. Bg5 {[%clk 0:03:06.1]} 13... Qxd1 {[%clk 0:02:12.5]} 14.
Raxd1 {[%clk 0:03:05.6]} 14... f6 {[%clk 0:02:10.4]} 15. Bc4+ {[%clk 0:02:46.9]}
15... Kh8 {[%clk 0:02:08.5]} 16. Rd7 {[%clk 0:02:44.3]} 16... Nc6 {[%clk
0:00:56.4]} 17. Be3 {[%clk 0:02:42.2]} 17... Rac8 {[%clk 0:00:57.7]} 18. Red1
{[%clk 0:02:34.6]} 18... Rfd8 {[%clk 0:00:56.7]} 19. Rxd8+ {[%clk 0:02:28.4]}
19... Rxd8 {[%clk 0:00:58.5]} 20. Rxd8+ {[%clk 0:02:28.9]} 20... Nxd8 {[%clk
0:01:00.4]} 21. Bxa7 {[%clk 0:02:30.1]} 21... Nf4 {[%clk 0:00:47.6]} 22. Be3
{[%clk 0:02:24.8]} 22... Bf8 {[%clk 0:00:48]} 23. g3 {[%clk 0:02:24.1]} 23...
Nfe6 {[%clk 0:00:41.5]} 24. b4 {[%clk 0:02:25.1]} 24... Kg7 {[%clk 0:00:37.2]}
25. a4 {[%clk 0:02:24.8]} 25... Bd6 {[%clk 0:00:35.9]} 26. a5 {[%clk 0:02:25.8]}
26... c6 {[%clk 0:00:32.8]} 27. Nd2 {[%clk 0:02:21.2]} 27... Kf8 {[%clk
0:00:31.7]} 28. Nb3 {[%clk 0:02:05.7]} 28... Ke7 {[%clk 0:00:32.5]} 29. Kg2
{[%clk 0:02:03]} 29... Nc7 {[%clk 0:00:30.3]} 30. Nc5 {[%clk 0:01:58.4]} 30...
Nb5 {[%clk 0:00:22.6]} 31. Bxb5 {[%clk 0:01:58.2]} 31... cxb5 {[%clk 0:00:24.5]}
32. Nxb7 {[%clk 0:01:58.5]} 32... Nxb7 {[%clk 0:00:24.9]} 33. a6 {[%clk
0:01:59.7]} 33... Bb8 {[%clk 0:00:24.1]} 34. axb7 {[%clk 0:01:54.9]} 34... Kd7
{[%clk 0:00:25.3]} 35. Bc5 {[%clk 0:01:55.9]} 35... Kc6 {[%clk 0:00:25.9]} 36.
g4 {[%clk 0:01:55.3]} 36... Kxb7 {[%clk 0:00:22.4]} 37. Be7 {[%clk 0:01:56.2]}
37... Kc6 {[%clk 0:00:24.3]} 38. Bxf6 {[%clk 0:01:57.2]} 38... Kd7 {[%clk
0:00:25.8]} 39. Kf1 {[%clk 0:01:55.9]} 39... Ke6 {[%clk 0:00:26.5]} 40. Bg5
{[%clk 0:01:56.2]} 40... Bc7 {[%clk 0:00:26.6]} 41. Ke2 {[%clk 0:01:57.2]} 41...
h5 {[%clk 0:00:26.7]} 42. Kd3 {[%clk 0:01:57.2]} 42... Bb6 {[%clk 0:00:27.6]}
43. f3 {[%clk 0:01:57.9]} 43... Bf2 {[%clk 0:00:26.6]} 44. c4 {[%clk 0:01:57.8]}
44... Be1 {[%clk 0:00:17.2]} 45. cxb5 {[%clk 0:01:58.5]} 45... Bxb4 {[%clk
0:00:18.5]} 46. Kc4 {[%clk 0:01:59.6]} 46... Bd6 {[%clk 0:00:18.1]} 47. b6
{[%clk 0:02:00.3]} 47... Bb8 {[%clk 0:00:19.1]} 48. Kc5 {[%clk 0:02:01.1]} 48...
Kd7 {[%clk 0:00:19.5]} 49. Kd5 {[%clk 0:02:01.1]} 49... Kc8 {[%clk 0:00:18.3]}
50. Kc6 {[%clk 0:02:01.6]} 50... hxg4 {[%clk 0:00:17.4]} 51. fxg4 {[%clk
0:02:02.2]} 51... Bc7 {[%clk 0:00:19.3]} 52. h4 {[%clk 0:02:02.2]} 52... Bb8
{[%clk 0:00:14]} 53. b7# {[%clk 0:02:02.6]} 1-0

[Event "*** Titled Tuesday Blitz"]
[Site "Chess.com"]
[Date "2019.02.05"]
[Round "5"]
[White "Bauxi435"]
[Black "MFguimaraes"]
[Result "1-0"]
[WhiteElo "2439"]
[BlackElo "2292"]
[TimeControl "180+2"]
[EndTime "14:06:15 PST"]
[Termination "Bauxi435 won on time"]

1. d4 {[%clk 0:03:01.9]} 1... Nf6 {[%clk 0:02:09]} 2. c4 {[%clk 0:02:59.3]} 2...
c6 {[%clk 0:02:09.5]} 3. Nc3 {[%clk 0:02:59.6]} 3... d5 {[%clk 0:02:10.8]} 4.
cxd5 {[%clk 0:02:58.3]} 4... cxd5 {[%clk 0:02:11.6]} 5. f3 {[%clk 0:02:59.8]}
5... Nc6 {[%clk 0:02:13.1]} 6. e4 {[%clk 0:03:00.7]} 6... e6 {[%clk 0:02:10.2]}
7. e5 {[%clk 0:03:00.8]} 7... Nd7 {[%clk 0:02:11.2]} 8. f4 {[%clk 0:03:01.3]}
8... g6 {[%clk 0:02:08.8]} 9. Be3 {[%clk 0:02:59.6]} 9... Bg7 {[%clk 0:02:10.7]}
10. Nf3 {[%clk 0:02:59.6]} 10... O-O {[%clk 0:02:12.6]} 11. Bd3 {[%clk
0:02:59.4]} 11... Nb6 {[%clk 0:02:13.6]} 12. O-O {[%clk 0:02:59.6]} 12... Bd7
{[%clk 0:02:15.5]} 13. Nb5 {[%clk 0:02:47]} 13... Nc8 {[%clk 0:02:15.5]} 14. a3
{[%clk 0:02:41.7]} 14... a6 {[%clk 0:02:14.4]} 15. Nc3 {[%clk 0:02:42.1]} 15...
b5 {[%clk 0:02:16.3]} 16. a4 {[%clk 0:02:33]} 16... b4 {[%clk 0:02:15.8]} 17.
Na2 {[%clk 0:02:33.3]} 17... Nb6 {[%clk 0:02:14.9]} 18. Nc1 {[%clk 0:02:30.4]}
18... Nc4 {[%clk 0:02:13.1]} 19. Qe2 {[%clk 0:02:24.7]} 19... N6a5 {[%clk
0:02:06.7]} 20. Bf2 {[%clk 0:02:22.3]} 20... b3 {[%clk 0:02:05.2]} 21. Nd2
{[%clk 0:02:15.5]} 21... Nxb2 {[%clk 0:01:58.8]} 22. Bxa6 {[%clk 0:02:10.2]}
22... Qb6 {[%clk 0:01:54.1]} 23. Bb5 {[%clk 0:02:04.1]} 23... Bxb5 {[%clk
0:01:48.4]} 24. axb5 {[%clk 0:02:04.6]} 24... Nbc4 {[%clk 0:01:47.1]} 25. Ncxb3
{[%clk 0:02:01.4]} 25... Nxb3 {[%clk 0:01:43.9]} 26. Nxb3 {[%clk 0:01:58.1]}
26... Qxb5 {[%clk 0:01:45.1]} 27. Nc5 {[%clk 0:01:58.8]} 27... Rxa1 {[%clk
0:01:45.5]} 28. Rxa1 {[%clk 0:01:59.5]} 28... Rb8 {[%clk 0:01:45.8]} 29. h3
{[%clk 0:01:56.2]} 29... Bf8 {[%clk 0:01:47]} 30. Nd3 {[%clk 0:01:36.4]} 30...
Na3 {[%clk 0:01:46.2]} 31. Kh2 {[%clk 0:01:31.1]} 31... Rc8 {[%clk 0:01:42.5]}
32. Qd1 {[%clk 0:01:17.1]} 32... Rc3 {[%clk 0:01:41.9]} 33. Nc5 {[%clk
0:01:14.7]} 33... Bxc5 {[%clk 0:01:39.7]} 34. dxc5 {[%clk 0:01:16.6]} 34... Nc2
{[%clk 0:01:38.1]} 35. Ra8+ {[%clk 0:01:15.4]} 35... Kg7 {[%clk 0:01:38.8]} 36.
Qg4 {[%clk 0:01:12.8]} 36... Qd3 {[%clk 0:01:35.7]} 37. Bh4 {[%clk 0:01:09.9]}
37... Qf5 {[%clk 0:01:14.1]} 38. Bf6+ {[%clk 0:01:05.9]} 38... Kh6 {[%clk
0:01:14.9]} 39. Qg5+ {[%clk 0:00:56.5]} 39... Qxg5 {[%clk 0:01:13.6]} 40. fxg5+
{[%clk 0:00:56.5]} 40... Kh5 {[%clk 0:01:14.5]} 41. Rh8 {[%clk 0:00:57.3]} 1-0